bitfinex-derivatives/quotes_BTCF0:USTF0_20250422
["timestamp","ask_amount","ask_price","bid_price","bid_amount"]
[1745340907538,0.935334,90785.0,90784.0,0.05431272]
[1745340907737,0.936334,90785.0,90784.0,0.05431272]
[1745340908940,0.936334,90785.0,90784.0,0.04053952]
[1745340909135,0.1651478,90774.0,90770.0,0.00165258]
[1745340909434,0.470899,90771.0,90770.0,0.13165258]
[1745340909634,0.470899,90771.0,90770.0,0.18789639]
[1745340909834,0.470899,90771.0,90770.0,0.16145184]
[1745340910733,0.471899,90771.0,90770.0,0.16145184]
[1745340912341,0.472899,90771.0,90770.0,0.16145184]
[1745340913545,0.472899,90771.0,90770.0,0.14216841]
[1745340914436,0.583067,90771.0,90770.0,0.14216841]
[1745340915034,0.472899,90771.0,90770.0,0.14216841]
[1745340916238,0.583067,90771.0,90770.0,0.05624381]
[1745340916549,0.1101099,90762.0,90761.0,0.08726044]
[1745340916743,0.5559499,90762.0,90761.0,0.02049199]
[1745340917042,0.5559499,90762.0,90761.0,0.07669271]
[1745340917545,0.9601499,90762.0,90761.0,0.07669271]
[1745340917845,0.96961306,90762.0,90761.0,0.07669271]
[1745340918443,1.08079306,90762.0,90761.0,0.07669271]
[1745340919248,1.08079306,90762.0,90761.0,0.06291664]
[1745340922139,1.08079306,90762.0,90761.0,0.04363018]
[1745340922352,1.08079306,90762.0,90761.0,0.02]
[1745340922849,1.08079306,90762.0,90761.0,0.01543641]
[1745340923039,1.08079306,90762.0,90761.0,0.07169179]
[1745340923948,0.97061306,90762.0,90761.0,0.07169179]
[1745340925852,1.08079306,90762.0,90761.0,0.05625538]
[1745340926052,0.1101148,90758.0,90757.0,0.0049583]
[1745340926247,0.1101148,90758.0,90757.0,0.0249583]
[1745340926453,0.1101148,90758.0,90757.0,0.08019977]
[1745340927252,0.3772148,90758.0,90757.0,0.08019977]
[1745340927454,0.3782148,90758.0,90757.0,0.08019977]
[1745340927660,0.3792148,90758.0,90757.0,0.08019977]
[1745340928860,0.3792148,90758.0,90757.0,0.04052468]
[1745340929048,0.3792148,90758.0,90757.0,0.04]
[1745340929750,0.3792148,90758.0,90757.0,0.09512572]
[1745340929950,0.7400148,90758.0,90757.0,0.08134965]
[1745340930347,0.7400148,90758.0,90757.0,0.06206316]
[1745340932447,1.1008148,90758.0,90757.0,0.06206316]
[1745340935248,1.1008148,90758.0,90757.0,0.03]
[1745340940051,1.1008148,90758.0,90757.0,0.0703943]
[1745340940653,1.1008148,90758.0,90757.0,0.05110845]
[1745340940860,1.1008148,90758.0,90757.0,0.03]
[1745340941557,1.1008148,90758.0,90757.0,0.08615354]
[1745340943165,1.1008148,90758.0,90757.0,0.05970437]
[1745340944556,0.492,90758.0,90757.0,0.05970437]
[1745340945760,0.3628,90758.0,90757.0,0.02003203]
[1745340945963,0.3628,90758.0,90757.0,0.06]
[1745340946263,0.3628,90758.0,90757.0,0.03245026]
[1745340947170,0.3628,90758.0,90757.0,0.08618486]
[1745340948674,0.3628,90758.0,90757.0,0.06690051]
[1745340950162,0.3628,90758.0,90757.0,0.05312597]
[1745340950367,0.3628,90758.0,90757.0,0.05]
[1745340951164,0.3628,90758.0,90757.0,0.07874368]
[1745340951362,0.3628,90758.0,90757.0,0.02355288]
[1745340953973,0.3628,90758.0,90757.0,0.07887591]
[1745340957883,0.3628,90758.0,90757.0,0.05959153]
[1745340958282,0.3618,90758.0,90757.0,0.05959153]
[1745340958474,0.3628,90758.0,90757.0,0.05959153]
[1745340958674,0.001,90758.0,90757.0,0.16977552]
[1745340958874,0.00846316,90762.0,90757.0,0.32720048]
[1745340959074,0.1403,90769.0,90761.0,0.3608]
[1745340959271,0.1339,90768.0,90762.0,0.1384]
[1745340959476,0.1339,90768.0,90762.0,0.2623]
[1745340959677,0.1403,90767.0,90762.0,0.2623]
[1745340960079,0.1339,90766.0,90762.0,0.2623]
[1745340960478,0.1403,90765.0,90762.0,0.2623]
[1745340960683,0.1403,90765.0,90762.0,0.24852682]
[1745340960879,0.1339,90764.0,90762.0,0.24852682]
[1745340961078,0.1403,90765.0,90762.0,0.24852682]
[1745340961483,0.1403,90765.0,90762.0,0.24952682]
[1745340962074,0.1397,90764.0,90762.0,0.17562682]
[1745340962284,0.1397,90764.0,90762.0,0.36962682]
[1745340962483,0.1296,90763.0,90762.0,0.36962682]
[1745340964281,0.1296,90763.0,90762.0,0.45672207]
[1745340964585,0.1296,90763.0,90762.0,0.33109525]
[1745340965082,0.1306,90763.0,90762.0,0.45859525]
[1745340965281,0.1306,90763.0,90762.0,0.26759525]
[1745340965282,0.1316,90763.0,90762.0,0.26759525]
[1745340965781,0.1296,90763.0,90762.0,0.26559525]
[1745340965975,0.1316,90763.0,90762.0,0.26759525]
[1745340966481,0.1316,90763.0,90762.0,0.26659525]
[1745340966688,0.1316,90763.0,90762.0,0.24731131]
[1745340967777,0.2417087,90763.0,90762.0,0.11881131]
[1745340967974,0.2417087,90763.0,90762.0,0.11781131]
[1745340968184,0.2417087,90763.0,90762.0,0.11881131]
[1745340968482,0.2407087,90763.0,90762.0,0.11881131]
[1745340968689,0.2417087,90763.0,90762.0,0.11881131]
[1745340968989,0.3820087,90763.0,90762.0,0.11881131]
[1745340969183,0.3830087,90763.0,90762.0,0.11881131]
[1745340970286,0.3830087,90763.0,90762.0,0.03171606]
[1745340971490,0.3830087,90763.0,90762.0,0.01794072]
[1745340971879,0.7438087,90763.0,90762.0,0.01594072]
[1745340973287,0.7438087,90763.0,90762.0,0.00714141]
[1745340974788,0.7558087,90763.0,90762.0,0.00614141]
[1745340975287,0.1101135,90759.0,90758.0,0.12655468]
[1745340975479,0.1101135,90759.0,90758.0,0.17655468]
[1745340975985,0.3830135,90760.0,90758.0,0.53735468]
[1745340976191,0.3830135,90759.0,90758.0,0.53735468]
[1745340976689,0.2729,90759.0,90758.0,0.53735468]
[1745340977087,0.3830135,90759.0,90758.0,0.53735468]
[1745340977692,0.3860135,90759.0,90758.0,0.53735468]
[1745340978082,0.3830135,90759.0,90758.0,0.53735468]
[1745340978286,0.3840135,90759.0,90758.0,0.53735468]
[1745340978481,0.3870135,90759.0,90758.0,0.53735468]
[1745340980692,0.3870135,90759.0,90758.0,0.4108]
[1745340980890,0.7458135,90759.0,90758.0,0.05]
[1745340981197,0.7448135,90759.0,90758.0,0.05]
[1745340981394,0.7468135,90759.0,90758.0,0.05]
[1745340981695,0.7468135,90759.0,90758.0,0.03622286]
[1745340982285,0.7438135,90759.0,90758.0,0.03622286]
[1745340982489,0.1101148,90758.0,90757.0,0.05491376]
[1745340982685,0.1101208,90753.0,90752.0,0.00016519]
[1745340982891,0.1101208,90753.0,90752.0,0.04016519]
[1745340983093,0.1101208,90753.0,90752.0,0.02934446]
[1745340983293,0.3773208,90753.0,90752.0,0.02934446]
[1745340983595,0.3773208,90753.0,90752.0,0.08476086]
[1745340984392,0.3823208,90753.0,90752.0,0.08476086]
[1745340984588,0.3823208,90753.0,90752.0,0.0554164]
[1745340984788,0.1101366,90740.0,90739.0,0.21629525]
[1745340984985,0.1101366,90740.0,90739.0,0.3192]
[1745340985192,0.1101366,90740.0,90739.0,0.37439601]
[1745340985598,0.3773366,90740.0,90739.0,0.37439601]
[1745340986399,0.3773366,90740.0,90739.0,0.3551068]
[1745340987190,0.3793366,90740.0,90739.0,0.3551068]
[1745340987599,0.3783366,90740.0,90739.0,0.3551068]
[1745340987994,0.3793366,90740.0,90739.0,0.3551068]
[1745340988701,0.3783366,90740.0,90739.0,0.3551068]
[1745340988904,0.3793366,90740.0,90739.0,0.3551068]
[1745340990694,0.3783366,90740.0,90739.0,0.3551068]
[1745340991008,0.3793366,90740.0,90739.0,0.3551068]
[1745340991301,0.001,90740.0,90739.0,0.43885906]
[1745340991503,0.002,90740.0,90739.0,0.43885906]
[1745340991802,0.001,90740.0,90739.0,0.43885906]
[1745340991994,0.002,90740.0,90739.0,0.43885906]
[1745340992199,0.002,90740.0,90739.0,0.63085906]
[1745340992401,0.002,90740.0,90739.0,0.61708247]
[1745340992795,0.1121366,90740.0,90739.0,0.61708247]
[1745340992997,0.21044964,90770.0,90739.0,0.61708247]
[1745340992998,0.1376,90755.0,90739.0,0.61708247]
[1745340993199,0.0550598,90754.0,90751.0,0.3598]
[1745340993397,0.1376,90755.0,90752.0,0.2115]
[1745340993595,0.1101208,90753.0,90752.0,0.2715]
[1745340994001,0.1376,90755.0,90752.0,0.23182643]
[1745340994297,0.1376,90755.0,90752.0,0.21254067]
[1745340994601,0.1416,90755.0,90752.0,0.1943]
[1745340996405,0.1358,90754.0,90752.0,0.1943]
[1745340996904,0.1347,90753.0,90752.0,0.1953]
[1745340997397,0.1347,90753.0,90752.0,0.1943]
[1745340997595,0.2705,90753.0,90752.0,0.1953]
[1745340997808,0.3806208,90753.0,90752.0,0.061]
[1745340998800,0.3836208,90753.0,90752.0,0.061]
[1745340998997,0.3836208,90753.0,90752.0,0.06]
[1745340999196,0.3866208,90753.0,90752.0,0.061]
[1745341002503,0.3866208,90753.0,90752.0,0.02527444]
[1745341003515,0.3866208,90753.0,90752.0,0.00598615]
[1745341003902,0.1101317,90744.0,90743.0,0.00016528]
[1745341004108,0.4709317,90744.0,90743.0,0.00016528]
[1745341004809,0.1101366,90740.0,90739.0,0.02780343]
[1745341005012,0.2202889,90735.0,90732.0,0.08709525]
[1745341005205,0.055074,90731.0,90713.0,0.3608]
[1745341005405,0.055074,90731.0,90727.0,0.0588463]
[1745341005406,0.1101512,90729.0,90727.0,0.0588463]
[1745341005909,0.2411512,90728.0,90727.0,0.0588463]
[1745341006812,0.2411512,90728.0,90727.0,0.0608463]
[1745341007212,0.3755512,90728.0,90727.0,0.0608463]
[1745341008315,0.3775512,90728.0,90727.0,0.0588463]
[1745341010413,0.3775512,90728.0,90727.0,0.03238882]
[1745341010614,0.2674,90728.0,90722.0,0.1345]
[1745341010817,0.1101548,90725.0,90724.0,0.1287]
[1745341011316,0.2664,90728.0,90724.0,0.1287]
[1745341011507,0.1289,90726.0,90725.0,0.1269]
[1745341011906,0.1289,90726.0,90725.0,0.251524]
[1745341012106,0.1289,90726.0,90725.0,0.443524]
[1745341012311,0.1289,90726.0,90725.0,0.3189]
[1745341012609,0.1299,90726.0,90725.0,0.3051213]
[1745341012811,0.1309,90726.0,90725.0,0.3051213]
[1745341014806,0.1299,90726.0,90725.0,0.3051213]
[1745341015209,0.1309,90726.0,90725.0,0.3061213]
[1745341015719,0.1309,90726.0,90725.0,0.26643884]
[1745341015918,0.1299,90726.0,90725.0,0.26643884]
[1745341016216,0.1309,90726.0,90725.0,0.24714876]
[1745341018117,0.1299,90726.0,90725.0,0.24714876]
[1745341018315,0.1309,90726.0,90725.0,0.24714876]
[1745341018519,0.1309,90726.0,90725.0,0.22069358]
[1745341020413,0.001,90726.0,90725.0,0.22069358]
[1745341020618,0.1288,90734.0,90725.0,0.34531758]
[1745341020816,0.1288,90734.0,90733.0,0.3608]
[1745341021815,0.1298,90734.0,90733.0,0.3608]
[1745341022410,0.1308,90734.0,90733.0,0.3618]
[1745341022922,0.002,90734.0,90733.0,0.34802201]
[1745341023225,0.002,90734.0,90733.0,0.54002201]
[1745341024215,0.0844,90749.0,90733.0,0.65023401]
[1745341024414,0.2767,90748.0,90744.0,0.3608]
[1745341024623,0.2767,90748.0,90745.0,0.2688]
[1745341024812,0.2767,90748.0,90745.0,0.24951262]
[1745341025017,0.1324,90747.0,90745.0,0.24951262]
[1745341025413,0.1377,90746.0,90745.0,0.24951262]
[1745341026034,0.1377,90746.0,90745.0,0.20983613]
[1745341026221,0.1324,90747.0,90745.0,0.40183613]
[1745341026523,0.1344,90747.0,90745.0,0.40383613]
[1745341026726,0.1101163,90757.0,90745.0,0.40383613]
[1745341026727,0.0844,90766.0,90746.0,0.470996]
[1745341026920,0.1384,90758.0,90750.0,0.21044964]
[1745341027121,0.1384,90758.0,90757.0,0.3608]
[1745341027922,0.1384,90758.0,90757.0,0.3588]
[1745341028327,0.1424,90758.0,90757.0,0.3598]
[1745341028721,0.1454,90758.0,90757.0,0.3608]
[1745341029117,0.2555148,90758.0,90757.0,0.3608]
[1745341029721,0.1454,90758.0,90757.0,0.3908]
[1745341032620,0.1454,90758.0,90757.0,0.35112767]
[1745341033126,0.2814,90758.0,90757.0,0.35112767]
[1745341033324,0.2814,90758.0,90757.0,0.33735255]
[1745341037021,0.3915148,90758.0,90757.0,0.33735255]
[1745341037419,0.2814,90758.0,90757.0,0.33735255]
[1745341040323,0.2814,90758.0,90757.0,0.31806741]
[1745341043028,0.1331,90761.0,90757.0,0.31806741]
[1745341043029,0.00821445,90762.0,90757.0,0.31806741]
[1745341043223,0.2706,90766.0,90758.0,0.2628]
[1745341043532,0.1341,90770.0,90758.0,0.32902523]
[1745341043720,0.1341,90770.0,90765.0,0.3608]
[1745341043922,0.1341,90770.0,90766.0,0.21453598]
[1745341044119,0.1341,90770.0,90766.0,0.27153598]
[1745341044331,0.1341,90770.0,90766.0,0.26753598]
[1745341044531,0.1326,90769.0,90766.0,0.26753598]
[1745341044931,0.00216528,90767.0,90766.0,0.26753598]
[1745341045232,0.00216528,90767.0,90766.0,0.45953598]
[1745341045429,0.00116528,90767.0,90766.0,0.3773]
[1745341045727,0.00216528,90767.0,90766.0,0.3883]
[1745341045929,0.1326,90777.0,90766.0,0.498472]
[1745341046132,0.1326,90777.0,90774.0,0.3608]
[1745341046335,0.1326,90777.0,90775.0,0.1253]
[1745341046529,0.1326,90777.0,90775.0,0.36134084]
[1745341046734,0.005,90779.0,90775.0,0.47150084]
[1745341047035,0.005,90779.0,90775.0,0.36134084]
[1745341047237,0.005,90779.0,90775.0,0.55334084]
[1745341047827,0.08617012,90776.0,90775.0,0.55334084]
[1745341048232,0.08617012,90776.0,90775.0,0.66650084]
[1745341048544,0.08617012,90776.0,90775.0,0.66950084]
[1745341049131,0.08717012,90776.0,90775.0,0.67050084]
[1745341049636,0.08717012,90776.0,90775.0,0.56034084]
[1745341050334,0.08817012,90776.0,90775.0,0.54206107]
[1745341051929,0.08817012,90776.0,90775.0,0.90286107]
[1745341053533,0.002,90776.0,90775.0,0.90286107]
[1745341054327,0.002,90776.0,90775.0,0.88908981]
[1745341058247,0.002,90776.0,90775.0,0.75918981]
[1745341058442,0.002,90776.0,90775.0,0.66694084]
[1745341058643,0.72296,90776.0,90757.0,0.36096528]
[1745341058941,0.1101148,90758.0,90757.0,0.10016528]
[1745341059240,0.1101148,90758.0,90757.0,0.15410902]
[1745341059945,0.3674148,90758.0,90757.0,0.12143619]
[1745341060241,0.3674148,90758.0,90757.0,0.05794374]
[1745341060434,0.3674148,90758.0,90757.0,0.07194374]
[1745341060435,0.3694148,90758.0,90757.0,0.07194374]
[1745341060834,0.3684148,90758.0,90757.0,0.06394374]
[1745341061037,0.3694148,90758.0,90757.0,0.06994374]
[1745341062141,0.3684148,90758.0,90757.0,0.06994374]
[1745341062341,0.3684148,90758.0,90757.0,0.06494374]
[1745341062342,0.2613,90758.0,90757.0,0.06494374]
[1745341062538,0.2633,90758.0,90757.0,0.06494374]
[1745341062933,0.2573,90758.0,90757.0,0.06394374]
[1745341063139,0.2623,90758.0,90757.0,0.06494374]
[1745341063636,0.2603,90758.0,90757.0,0.06494374]
[1745341063836,0.2573,90758.0,90757.0,0.06394374]
[1745341064238,0.2583,90758.0,90757.0,0.06394374]
[1745341064442,0.2583,90758.0,90757.0,0.05016856]
[1745341064646,0.3684148,90758.0,90757.0,0.01]
[1745341065242,0.3684148,90758.0,90757.0,0.012]
[1745341066140,0.3674148,90758.0,90757.0,0.01]
[1745341066335,0.3674148,90758.0,90757.0,0.013]
[1745341066541,0.4224724,90758.0,90757.0,0.03]
[1745341066734,0.4224724,90758.0,90757.0,0.0035516]
[1745341066934,0.4224724,90758.0,90757.0,0.0065516]
[1745341067335,0.34349222,90758.0,90757.0,0.0055516]
[1745341067642,0.29933557,90758.0,90757.0,0.0055516]
[1745341068036,0.29933557,90758.0,90757.0,0.3294516]
[1745341068542,0.29933557,90758.0,90757.0,0.3284516]
[1745341068742,0.22019222,90758.0,90757.0,0.7405516]
[1745341068944,0.22019222,90758.0,90757.0,0.7415516]
[1745341069147,0.22019222,90758.0,90757.0,0.8644516]
[1745341069447,0.22119222,90758.0,90757.0,0.8674516]
[1745341070149,0.22119222,90758.0,90757.0,0.8694516]
[1745341071254,0.22119222,90758.0,90757.0,0.6136516]
[1745341071443,0.33130702,90758.0,90757.0,0.6136516]
[1745341072246,0.33230702,90758.0,90757.0,0.4246516]
[1745341072749,0.2461148,90758.0,90757.0,0.4246516]
[1745341072943,0.2451148,90758.0,90757.0,0.4196516]
[1745341073142,0.2451148,90758.0,90757.0,0.6146516]
[1745341073546,0.2451148,90758.0,90757.0,0.6116516]
[1745341073742,0.2461148,90758.0,90757.0,0.6076516]
[1745341074647,0.136,90758.0,90757.0,0.56797819]
[1745341074843,0.136,90758.0,90757.0,0.5742027]
[1745341075040,0.2461148,90758.0,90757.0,0.5549172]
[1745341075546,0.136,90758.0,90757.0,0.5549172]
[1745341075743,0.135,90758.0,90757.0,0.5549172]
[1745341075946,0.134,90758.0,90757.0,0.5549172]
[1745341076143,0.134,90758.0,90757.0,0.5559172]
[1745341076449,0.134,90758.0,90757.0,0.5569172]
[1745341078851,0.135,90758.0,90757.0,0.5579172]
[1745341079049,0.135,90758.0,90757.0,0.5589172]
[1745341079441,0.134,90758.0,90757.0,0.5549172]
[1745341079649,0.135,90758.0,90757.0,0.5579172]
[1745341080644,0.135,90758.0,90757.0,0.5182461]
[1745341080949,0.2451148,90758.0,90757.0,0.5182461]
[1745341081249,0.2451148,90758.0,90757.0,0.3262461]
[1745341081439,0.3704148,90758.0,90757.0,0.3262461]
[1745341081841,0.2603,90758.0,90757.0,0.3262461]
[1745341082649,0.2603,90758.0,90757.0,0.4558461]
[1745341083052,0.3704148,90758.0,90757.0,0.4558461]
[1745341083248,0.3694148,90758.0,90757.0,0.43456123]
[1745341083445,0.3694148,90758.0,90757.0,0.43556123]
[1745341083845,0.2593,90758.0,90757.0,0.43556123]
[1745341084049,0.2593,90758.0,90757.0,0.43456123]
[1745341084748,0.2593,90758.0,90757.0,0.43356123]
[1745341085051,0.2593,90758.0,90757.0,0.30496123]
[1745341085250,0.2593,90758.0,90757.0,0.29118632]
[1745341085551,0.2593,90758.0,90757.0,0.29018632]
[1745341085756,0.2593,90758.0,90757.0,0.29218632]
[1745341086141,0.2593,90758.0,90757.0,0.29118632]
[1745341086754,0.2593,90758.0,90757.0,0.25151458]
[1745341087853,0.2593,90758.0,90757.0,0.25051458]
[1745341088053,0.2593,90758.0,90757.0,0.25151458]
[1745341088750,0.2603,90758.0,90757.0,0.25351458]
[1745341089149,0.2603,90758.0,90757.0,0.25251458]
[1745341089553,0.2593,90758.0,90757.0,0.25151458]
[1745341089949,0.2593,90758.0,90757.0,0.25251458]
[1745341090954,0.3694148,90758.0,90757.0,0.25251458]
[1745341091253,0.2593,90758.0,90757.0,0.24151458]
[1745341091458,0.2603,90758.0,90757.0,0.24351458]
[1745341091756,0.2603,90758.0,90757.0,0.24251458]
[1745341092054,0.2593,90758.0,90757.0,0.23051458]
[1745341092257,0.2613,90758.0,90757.0,0.23151458]
[1745341092754,0.2593,90758.0,90757.0,0.23151458]
[1745341092954,0.2593,90758.0,90757.0,0.24351458]
[1745341092955,0.2603,90758.0,90757.0,0.24351458]
[1745341093354,0.2603,90758.0,90757.0,0.012]
[1745341093560,0.2613,90758.0,90757.0,0.012]
[1745341094358,0.2603,90758.0,90757.0,0.011]
[1745341094561,0.3704148,90758.0,90757.0,0.011]
[1745341094954,0.3694148,90758.0,90757.0,0.011]
[1745341095259,0.2593,90758.0,90757.0,0.012]
[1745341095555,0.2593,90758.0,90757.0,0.011]
[1745341095763,0.2603,90758.0,90754.0,0.1272]
[1745341096063,0.3704151,90758.0,90754.0,0.1472]
[1745341096853,0.2603,90758.0,90754.0,0.1279149]
[1745341097056,0.2603,90758.0,90754.0,0.18285454]
[1745341097258,0.2603,90758.0,90754.0,0.31335454]
[1745341097460,0.135,90758.0,90754.0,0.31335454]
[1745341097755,0.00840222,90762.0,90754.0,0.31335454]
[1745341097956,0.001,90758.0,90754.0,0.31335454]
[1745341098161,0.1225,90757.0,90754.0,0.50535454]
[1745341098357,0.1344,90756.0,90754.0,0.50535454]
[1745341098557,0.1344,90756.0,90754.0,0.46568473]
[1745341098753,0.2539,90755.0,90754.0,0.46568473]
[1745341098961,0.00813597,90762.0,90754.0,0.46568473]
[1745341099261,0.1258,90761.0,90755.0,0.1262]
[1745341099558,0.1258,90761.0,90755.0,0.1662]
[1745341100163,0.1258,90761.0,90755.0,0.3582]
[1745341100953,0.1258,90761.0,90755.0,0.33175431]
[1745341101462,0.1258,90761.0,90755.0,0.232]
[1745341101756,0.1281,90760.0,90755.0,0.232]
[1745341101957,0.1281,90760.0,90755.0,0.235]
[1745341102257,0.1235,90759.0,90755.0,0.1643]
[1745341102457,0.2336142,90759.0,90755.0,0.1613]
[1745341102659,0.001,90756.0,90755.0,0.1623]
[1745341103359,0.1318,90758.0,90755.0,0.1623]
[1745341103560,0.1235,90757.0,90755.0,0.042]
[1745341104067,0.2558,90756.0,90755.0,0.042]
[1745341104663,0.2558,90756.0,90755.0,0.00132788]
[1745341105365,0.2558,90756.0,90755.0,0.00232788]
[1745341105567,0.3659172,90756.0,90755.0,0.02]
[1745341105769,0.3669172,90756.0,90755.0,0.022]
[1745341105961,0.3669172,90756.0,90755.0,0.00822489]
[1745341106162,0.5010172,90756.0,90755.0,0.00822489]
[1745341106465,0.3899,90756.0,90755.0,0.00622489]
[1745341106669,0.57675937,90756.0,90755.0,0.00722489]
[1745341107261,0.57775937,90756.0,90755.0,0.00822489]
[1745341107464,0.68787657,90756.0,90755.0,0.00822489]
[1745341107865,0.68787657,90756.0,90755.0,0.00922489]
[1745341108367,0.68887657,90756.0,90755.0,0.00822489]
[1745341108857,0.68787657,90756.0,90755.0,0.002]
[1745341109066,0.68987657,90756.0,90755.0,0.011]
[1745341109463,0.68887657,90756.0,90755.0,0.011]
[1745341110167,0.2601,90756.0,90755.0,0.011]
[1745341110671,0.2601,90756.0,90755.0,0.031]
[1745341110874,0.2591,90756.0,90755.0,0.031]
[1745341111165,0.2601,90756.0,90755.0,0.031]
[1745341111563,0.2591,90756.0,90755.0,0.032]
[1745341112063,0.2581,90756.0,90755.0,0.031]
[1745341112268,0.2591,90756.0,90755.0,0.223]
[1745341112658,0.2591,90756.0,90755.0,0.222]
[1745341112863,0.34529222,90756.0,90755.0,0.222]
[1745341113658,0.34529222,90756.0,90755.0,0.35]
[1745341114067,0.34529222,90756.0,90755.0,0.33071488]
[1745341114664,0.34529222,90756.0,90755.0,0.44991488]
[1745341115273,0.47469222,90756.0,90755.0,0.25791488]
[1745341115771,0.3895,90756.0,90755.0,0.25791488]
[1745341116166,0.3895,90756.0,90755.0,0.24413976]
[1745341116366,0.4986172,90756.0,90755.0,0.26413976]
[1745341116672,0.5016172,90756.0,90755.0,0.26413976]
[1745341116973,0.5016172,90756.0,90755.0,0.23769153]
[1745341117171,0.5006172,90756.0,90755.0,0.23769153]
[1745341118169,0.3905,90756.0,90755.0,0.19801919]
[1745341119475,0.3885,90756.0,90755.0,0.19801919]
[1745341119673,0.3905,90756.0,90755.0,0.19801919]
[1745341120974,0.57635937,90756.0,90755.0,0.19801919]
[1745341121673,0.57435937,90756.0,90755.0,0.02]
[1745341121879,0.57535937,90756.0,90755.0,0.02]
[1745341122487,0.57535937,90756.0,90755.0,0.00071484]
[1745341123482,0.57435937,90756.0,90755.0,0.00071484]
[1745341123692,0.57535937,90756.0,90755.0,0.00071484]
[1745341124896,0.57435937,90756.0,90755.0,0.00071484]
[1745341125085,0.57535937,90756.0,90755.0,0.00071484]
[1745341126591,0.57435937,90756.0,90755.0,0.00071484]
[1745341126780,0.57535937,90756.0,90755.0,0.00071484]
[1745341127185,0.57535937,90756.0,90754.0,0.04244135]
[1745341127392,0.57535937,90756.0,90754.0,0.18614135]
[1745341127885,0.3885,90756.0,90754.0,0.18614135]
[1745341129082,0.3885,90756.0,90754.0,0.15969311]
[1745341129487,0.3885,90756.0,90754.0,0.12002075]
[1745341130193,0.3885,90756.0,90754.0,0.25052075]
[1745341130586,0.3885,90756.0,90754.0,0.23123558]
[1745341132800,0.3885,90756.0,90754.0,0.28691899]
[1745341134402,0.18685937,90755.0,90754.0,0.28691899]
[1745341134797,0.43245937,90755.0,90754.0,0.28691899]
[1745341135501,0.43345937,90755.0,90754.0,0.28691899]
[1745341136405,0.43345937,90755.0,90754.0,0.20618341]
[1745341137092,0.54357777,90755.0,90754.0,0.07568341]
[1745341137295,1.01456577,90755.0,90754.0,0.05568341]
[1745341137497,0.1101196,90754.0,90746.0,0.23051458]
[1745341138001,0.1101281,90747.0,90746.0,0.28855563]
[1745341138201,0.1101281,90747.0,90746.0,0.31679089]
[1745341138403,0.4797281,90747.0,90746.0,0.31679089]
[1745341138999,0.4797281,90747.0,90746.0,0.10539806]
[1745341139400,0.4797281,90747.0,90746.0,0.06571871]
[1745341139602,0.4797281,90747.0,90746.0,0.05468611]
[1745341139801,0.1652079,90740.0,90737.0,0.21106852]
[1745341140005,0.110139,90738.0,90737.0,0.09016528]
[1745341140506,0.479739,90738.0,90737.0,0.14460344]
[1745341141705,0.480739,90738.0,90737.0,0.14460344]
[1745341141894,0.480739,90738.0,90737.0,0.14660344]
[1745341142205,0.480739,90738.0,90737.0,0.33860344]
[1745341142602,0.480739,90738.0,90737.0,0.33960344]
[1745341143203,0.480739,90738.0,90737.0,0.14760344]
[1745341145296,0.480739,90738.0,90737.0,0.33960344]
[1745341145500,0.480739,90738.0,90737.0,0.2999217]
[1745341150211,0.480739,90738.0,90737.0,0.28614332]
[1745341150514,0.480739,90738.0,90737.0,0.26685359]
[1745341151516,0.480739,90738.0,90737.0,0.22717185]
[1745341151708,0.480739,90738.0,90737.0,0.30717185]
[1745341154817,0.2582573,90738.0,90737.0,0.30717185]
[1745341155909,0.3683963,90738.0,90737.0,0.30717185]
[1745341158511,0.24953227,90755.0,90737.0,0.30717185]
[1745341158716,0.1228,90751.0,90745.0,0.42180648]
[1745341158917,0.1228,90751.0,90746.0,0.386]
[1745341159108,0.1228,90751.0,90746.0,0.436]
[1745341160220,0.1228,90751.0,90746.0,0.628]
[1745341160425,0.1248,90751.0,90746.0,0.628]
[1745341160623,0.1248,90751.0,90746.0,0.61422397]
[1745341161428,0.1238,90751.0,90746.0,0.61422397]
[1745341161819,0.1317,90750.0,90746.0,0.61422397]
[1745341162123,0.1317,90750.0,90746.0,0.59493787]
[1745341162324,0.1317,90750.0,90746.0,0.59593787]
[1745341162921,0.1238,90751.0,90746.0,0.59493787]
[1745341163128,0.001,90751.0,90746.0,0.59593787]
[1745341163727,0.001,90751.0,90746.0,0.59693787]
[1745341163926,0.1225,90757.0,90746.0,0.59693787]
[1745341164118,0.3608,90767.0,90746.0,0.59693787]
[1745341164119,0.3608,90767.0,90755.0,0.3608]
[1745341164318,0.1225,90766.0,90756.0,0.2499]
[1745341164520,0.1225,90766.0,90756.0,0.3399]
[1745341165322,0.1245,90766.0,90757.0,0.1225]
[1745341165522,0.1245,90766.0,90757.0,0.1825]
[1745341166130,0.1245,90766.0,90757.0,0.33483009]
[1745341166325,0.1225,90766.0,90757.0,0.252]
[1745341166522,0.1101078,90764.0,90757.0,0.252]
[1745341166722,0.2473,90763.0,90757.0,0.252]
[1745341167023,0.2473,90763.0,90758.0,0.1218]
[1745341167224,0.2473,90763.0,90758.0,0.1518]
[1745341167425,0.2473,90763.0,90759.0,0.1269]
[1745341167623,0.2473,90763.0,90759.0,0.1569]
[1745341168024,0.2483,90763.0,90759.0,0.1569]
[1745341168221,0.2493,90763.0,90759.0,0.3489]
[1745341168418,0.2483,90763.0,90759.0,0.3489]
[1745341168617,0.2493,90763.0,90759.0,0.3489]
[1745341169225,0.2493,90763.0,90760.0,0.1263]
[1745341169421,0.002,90763.0,90760.0,0.1563]
[1745341169724,0.002,90763.0,90761.0,0.1294]
[1745341169922,0.002,90763.0,90761.0,0.1594]
[1745341170118,0.002,90763.0,90762.0,0.1263]
[1745341170319,0.001,90763.0,90762.0,0.1563]
[1745341170526,0.002,90763.0,90762.0,0.2857]
[1745341170729,0.002,90763.0,90762.0,0.27192569]
[1745341170918,0.002,90763.0,90762.0,0.25264166]
[1745341171124,0.002,90763.0,90762.0,0.44564166]
[1745341171730,0.001,90763.0,90762.0,0.44664166]
[1745341172026,0.1211,90763.0,90762.0,0.44664166]
[1745341172228,0.1211,90763.0,90762.0,0.44564166]
[1745341173827,0.2312087,90763.0,90762.0,0.44564166]
[1745341174223,0.3523087,90763.0,90762.0,0.44564166]
[1745341175630,0.3523087,90763.0,90762.0,0.40597165]